[Event "7th Sharjah Masters 2024"]
[Site "Sharjah"]
[Date "2024.05.18"]
[Round "5.6"]
[White "Sindarov, Javokhir"]
[Black "Daneshvar, Bardiya"]
[Result "0-1"]
[ECO "C54"]
[WhiteElo "2684"]
[BlackElo "2582"]
[Annotator "TA"]
[PlyCount "58"]
[EventDate "2024.05.13"]
[EventType "swiss"]
[EventCountry "UAE"]
[SourceTitle "playchess.com"]
[Source "ChessBase"]
[SourceQuality "1"]
[TimeControl "5400+30"]

{[%evp 13,58,24,20,14,28,6,31,16,30,15,22,24,20,0,0,0,0,0,1,0,0,-70,-13,-16,-5,-92,-96,-102,-102,-219,-186,-197,-161,-176,-158,-195,-186,-280,-256,-281,-235,-263,-239,-604,-564,-1317,-1123]} 1. e4 {[%emt 1:31:00]} e5 {[%emt 1:31:00]} 2. Nf3 {[%emt 0:00:30]} Nc6 {[%emt 0:00:30]} 3. Bc4 {[%emt 0:00:30]} Bc5 {[%emt 0:00:30]} 4. O-O {[%emt 0:00:30]} Nf6 {[%emt 0:00:30]} 5. d3 {[%emt 0:00:30]} d6 {[%emt 0:00:30]} 6. c3 {[%emt 0:00:30]} a6 {[%emt 0:00:30]} 7. a4 {[%emt 0:00:30]} h6 {[%emt 0:00:30]} 8. Nbd2 {[%emt 0:00:30]} O-O {[%emt 0:00:30]} 9. Re1 {[%emt 0:00:30]} Re8 {[%emt 0:00:30]} 10. Nf1 {[%emt 0:00:30] White is slightly better.} Ba7 {[%emt 0:00:30]} 11. Qb3 {[%emt 0:00:30]} (11. Be3 {simplifies} Bxe3 12. Nxe3 Be6 13. Bxe6 Rxe6 14. b4) 11... Rf8 {[%emt 0:00:30]} 12. a5 {[%emt 0:00:30]} Bg4 {[%emt 0:00:30]} 13. Qxb7 {[%emt 0:00:30]} Qd7 {[%emt 0:00:30] [#] White must now prevent ...Rfb8.} 14. Qb3 {[%emt 0:00:30]} (14. Qxa6 $2 Rfb8 15. Bb5 Bxf2+ 16. Kxf2 Rxa6 17. Bxa6 Bxf3 18. gxf3 Ne7 $19) (14. Bxa6 $2 Rab8 15. Ng3 Rxb7 16. Bxb7 Nd8 $19) 14... Bxf3 {[%emt 0:00:30]} 15. gxf3 {[%emt 0:00:30][%cal Ob3a4]} Ne7 {[%emt 0:00:30] aiming for ...Ng6.} 16. Ng3 {[%emt 0:00:30][%cal Oc1e3]} (16. Bxa6 Ng6 17. Nd2 (17. Bb7 Qh3) 17... Nh4 $17) 16... d5 {[%emt 0:00:30]} 17. Bxa6 {[%emt 0:00:30]} (17. Bxd5 $11 Nfxd5 18. exd5) 17... Rfb8 {[%emt 0:00:30]} (17... Rab8 $1 $15 18. Qa4 Qd6) 18. Qa4 $1 $11 {[%emt 0:00:30] Qxd7 would now be deadly.} Qd6 $36 {[%emt 0:00:30][%mdl 2048] Black has some pressure.} 19. Bb5 {[%emt 0:00:30] [#]} (19. d4 $1 $11 Qxa6 20. dxe5) 19... Qc5 $1 $17 {[%emt 0:00:30][%csl LRb5,LRf2]} 20. d4 {[%emt 0:00:30]} Qxb5 {[%emt 0:00:30]} 21. exd5 {[%emt 0:00:30]} (21. Qxb5 $17 {was worth a try.} Rxb5 22. exd5 Rxd5 (22... Nfxd5 23. c4 $11) 23. Rxe5) 21... Qxd5 $19 {[%emt 0:00:30]} ({Worse is} 21... Nfxd5 22. Qxb5 Rxb5 23. c4 $11) 22. Rxe5 {[%emt 0:00:30]} Qd8 {[%emt 0:00:30]} (22... Qxf3 23. Rxe7 c5 24. Qc4 $11) 23. Re2 {[%emt 0:00:30]} Rc8 {[%emt 0:00:30]} 24. Ne4 {[%emt 0:00:30]} Nxe4 {[%emt 0:00:30]} 25. fxe4 {[%emt 0:00:30]} (25. Rxe4 $142 c6 26. a6) 25... c5 {[%emt 0:00:30][%cal Rc5d4]} 26. d5 {[%emt 0:00:30]} Ng6 {[%emt 0:00:30] Strongly threatening ...Qh4.} 27. Kh1 {[%emt 0:00:30]} Qh4 {[%emt 0:00:30]} 28. Qd7 {[%emt 0:00:30] Wards off Qh3} (28. Qd1) 28... Qh5 {[%emt 0:00:30]} 29. Re3 {[%emt 0:00:30] Dodges Qf3+} Rd8 {[%emt 0:00:30] Weighted Error Value: White=0.64/Black=0.12 (very precise) .  Mistake:       	White=5     	Black=1      Inaccurate:     	White=1     	---        OK:         	White=2     	Black=8      Best:        	White=2     	Black=1      Strong:       	White=1     	Black=1} 0-1

[Event "7th Sharjah Masters 2024"]
[Site "Sharjah"]
[Date "2024.05.18"]
[Round "5.7"]
[White "Muradli, Mahammad"]
[Black "Shankland, Sam"]
[Result "0-1"]
[ECO "E94"]
[WhiteElo "2561"]
[BlackElo "2671"]
[Annotator "TA"]
[PlyCount "118"]
[EventDate "2024.05.13"]
[EventType "swiss"]
[EventCountry "UAE"]
[SourceTitle "playchess.com"]
[Source "ChessBase"]
[SourceQuality "1"]
[TimeControl "5400+30"]

{[%evp 46,118,0,-84,-98,-101,-93,-101,-99,-325,-331,-581,-123,-121,-123,-133,-137,-130,-148,-139,-151,-148,-134,-722,-141,-174,-170,-162,-170,-190,-189,-173,-180,-170,-170,-222,-223,-214,-209,-213,-164,-200,-209,-204,-207,-260,-256,-342,-381,-367,-344,-434,-434,-924,-924,-781,-657,-1310,-1230,-1207,-1138,-1339,-1471,-1014,-806,-29956,-29958,-29981,-29982,-29982,-29983,-29983,-29982,-29981,-29965]} 1. d4 {[%emt 1:31:00]} Nf6 {[%emt 1:31:00]} 2. c4 {[%emt 0:00:30]} g6 {[%emt 0:00:30]} 3. Nc3 {[%emt 0:00:30]} Bg7 {[%emt 0:00:30]} 4. e4 {[%emt 0:00:30]} d6 {[%emt 0:00:30]} 5. Nf3 {[%emt 0:00:30]} O-O {[%emt 0:00:30]} 6. Be2 {[%emt 0:00:30]} e5 {[%emt 0:00:30]} 7. O-O {[%emt 0:00:30]} Na6 {[%emt 0:00:30] seems to push 7...Nc6 aside.} 8. Re1 {[%emt 0:00:30]} Bg4 {[%emt 0:00:30]} 9. Be3 {[%emt 0:00:30] E94: King's Indian: Classical: 6 Be2 e5 7 0-0: Various Black 7th moves.} exd4 {[%emt 0:00:30]} 10. Nxd4 {[%emt 0:00:30]} Bxe2 {[%emt 0:00:30]} 11. Qxe2 {[%emt 0:00:30]} Re8 {[%emt 0:00:30]} 12. f3 {[%emt 0:00:30]} c6 {[%emt 0:00:30]} 13. Rad1 {[%emt 0:00:30]} Nd7 {[%emt 0:00:30]} 14. Rd2 {[%emt 0:00:30]} Qe7 {[%emt 0:00:30]} 15. Qd1 $146 {[%emt 0:00:30]} ({Predecessor:} 15. Red1 Nb6 16. b3 Nc5 17. Qf2 f5 18. Nde2 Rad8 19. Qg3 Be5 20. Bg5 {1-0 Piantedosi,F (2038)-Johansen,A (1903) W-ch WS/H/115 email 2008}) 15... Rad8 {[%emt 0:00:30]} 16. Nde2 {[%emt 0:00:30]} Ne5 {[%emt 0:00:30]} 17. b3 {[%emt 0:00:30]} Nc5 {[%emt 0:00:30]} 18. Qc2 {[%emt 0:00:30]} a6 {[%emt 0:00:30]} 19. Bf2 {[%emt 0:00:30]} b5 {[%emt 0:00:30]} 20. cxb5 {[%emt 0:00:30]} axb5 {[%emt 0:00:30]} 21. a4 {[%emt 0:00:30]} bxa4 {[%emt 0:00:30]} 22. Nxa4 {[%emt 0:00:30]} Na6 {[%emt 0:00:30]} 23. h3 {[%emt 0:00:30]} d5 {[%emt 0:00:30]} (23... Nb4 $5 24. Qd1 $8 d5 $15) 24. exd5 {[%emt 0:00:30]} (24. f4 $11 Nb4 25. Qd1) 24... Nb4 $17 {[%emt 0:00:30]} (24... cxd5 $6 25. Qd1 $11) (24... Rxd5 25. Rxd5 cxd5 26. Qd2 $11) 25. Qd1 {[%emt 0:00:30]} Nxd5 {[%emt 0:00:30]} ({Much less strong is} 25... Rxd5 26. Rxd5 cxd5 (26... Nxd5 27. f4 $14) 27. Nf4 $15) (25... cxd5 $6 26. f4 Nec6 27. Nec3 $11) 26. Kh1 {[%emt 0:00:30]} Bh6 {[%emt 0:00:30]} 27. Bc5 $2 {[%emt 0:00:30] [#]} (27. f4 $17) 27... Qf6 $1 $19 {[%emt 0:00:30]} 28. f4 $2 {[%emt 0:00:30]} (28. Rf1 Bxd2 29. Qxd2) 28... Nxf4 $2 {[%emt 0:00:30]} (28... Nf3 $19 {is more deadly.} 29. Bb6 (29. gxf3 $2 {perishes.} Qh4 $19) 29... Nxb6 (29... Nxd2 $2 30. Bxd8 Qxd8 31. Qxd2 $19) 30. Rxd8 Rxd8) 29. Nxf4 $17 {[%emt 0:00:30]} Bxf4 {[%emt 0:00:30]} 30. Rxd8 {[%emt 0:00:30]} Rxd8 {[%emt 0:00:30]} 31. Qe2 {[%emt 0:00:30]} Rd2 {[%emt 0:00:30]} 32. Qf1 {[%emt 0:00:30]} Qg5 {[%emt 0:00:30]} 33. Re4 {[%emt 0:00:30] [#]} Bg3 $1 {[%emt 0:00:30]} 34. Rd4 $2 {[%emt 0:00:30][%mdl 8192]} (34. Nc3 $17 Rc2 35. Re3) 34... h5 $2 {[%emt 0:00:30]} (34... Nd3 $19 {and Black stays clearly on top. ( -> ...Nf2+)} 35. Rd7 Nf2+ (35... Nxc5 36. Qxf7+ Kh8 37. Qxh7#) 36. Bxf2 Rxd7) 35. Nc3 {[%emt 0:00:30]} Rxd4 {[%emt 0:00:30]} 36. Bxd4 {[%emt 0:00:30]} Qd2 {[%emt 0:00:30]} 37. Qd1 {[%emt 0:00:30]} Qxd1+ {[%emt 0:00:30]} 38. Nxd1 {[%emt 0:00:30]} Nd3 {[%emt 0:00:30]} 39. Nc3 {[%emt 0:00:30]} f5 {[%emt 0:00:30]} 40. Kg1 {[%emt 0:00:30]} (40. Ne2 $142 Bd6 41. g3) 40... Kf7 {[%emt 0:00:30]} 41. Kf1 {[%emt 0:00:30]} Ke6 {[%emt 0:00:30]} 42. Be3 {[%emt 0:00:30]} h4 {[%emt 0:00:30]} 43. Ke2 {[%emt 0:00:30]} Ne1 {[%emt 0:00:30]} 44. Kf1 {[%emt 0:00:30]} Nc2 {[%emt 0:00:30]} 45. Ke2 {[%emt 0:00:30]} Be5 {[%emt 0:00:30]} 46. Nb1 {[%emt 0:00:30]} Nxe3 {[%emt 0:00:30]} 47. Kxe3 {[%emt 0:00:30]} g5 {[%emt 0:00:30]} 48. Kd3 {[%emt 0:00:30]} g4 {[%emt 0:00:30]} 49. Nd2 {[%emt 0:00:30]} (49. Ke2 $142 Bd4 50. Na3) 49... Kd5 $19 {[%emt 0:00:30]} 50. Nc4 {[%emt 0:00:30]} Bd4 {[%emt 0:00:30]} 51. Nd2 {[%emt 0:00:30]} Ba7 {[%emt 0:00:30]} 52. Nc4 {[%emt 0:00:30]} Bc5 {[%emt 0:00:30]} 53. Nd2 {[%emt 0:00:30]} Ke5 {[%emt 0:00:30]} 54. Ke2 {[%emt 0:00:30]} Kf4 {[%emt 0:00:30]} 55. hxg4 {[%emt 0:00:30]} fxg4 {[%emt 0:00:30]} 56. Kf1 {[%emt 0:00:30]} h3 {[%emt 0:00:30]} 57. gxh3 {[%emt 0:00:30]} gxh3 {[%emt 0:00:30]} 58. b4 {[%emt 0:00:30]} Be3 {[%emt 0:00:30]} 59. Nc4 {[%emt 0:00:30]} Kf3 {[%emt 0:00:30]} 0-1

[Event "7th Sharjah Masters 2024"]
[Site "Sharjah"]
[Date "2024.05.18"]
[Round "5.8"]
[White "Sankalp Gupta"]
[Black "Sevian, Samuel"]
[Result "1/2-1/2"]
[ECO "D02"]
[WhiteElo "2532"]
[BlackElo "2699"]
[Annotator "TA"]
[PlyCount "59"]
[EventDate "2024.05.13"]
[EventType "swiss"]
[EventCountry "UAE"]
[SourceTitle "playchess.com"]
[Source "ChessBase"]
[SourceQuality "1"]
[TimeControl "5400+30"]

{[%evp 11,59,12,14,18,19,0,0,0,44,29,36,8,0,11,0,5,15,5,13,0,0,-11,0,0,0,0,11,35,32,22,11,0,2,0,30,10,47,37,38,41,40,24,56,70,54,0,18,0,72,0]} 1. Nf3 {[%emt 1:31:00]} d5 {[%emt 1:31:00]} 2. g3 {[%emt 0:00:30]} Nd7 {[%emt 0:00:30]} 3. d4 {[%emt 0:00:30]} e6 {[%emt 0:00:30]} 4. Bg2 {[%emt 0:00:30]} Ngf6 {[%emt 0:00:30]} 5. O-O {[%emt 0:00:30]} b5 {[%emt 0:00:30]} 6. a4 {[%emt 0:00:30]} b4 {[%emt 0:00:30] [#]} 7. c4 $1 {[%emt 0:00:30]} bxc3 {[%emt 0:00:30]} 8. bxc3 {[%emt 0:00:30][%cal Bb2c3,Bc3c4,Bc4c5][%mdl 32]} Ba6 {[%emt 0:00:30]} 9. Na3 {[%emt 0:00:30][%cal Oc3c4] The position is equal.} Ne4 {[%emt 0:00:30] [#]} 10. c4 {[%emt 0:00:30]} c6 {[%emt 0:00:30]} (10... Bxa3 11. Bxa3) 11. Qc2 {[%emt 0:00:30]} Rc8 {[%emt 0:00:30]} 12. c5 {[%emt 0:00:30]} Be7 {[%emt 0:00:30]} 13. Ne1 {[%emt 0:00:30][%cal Oe1d3]} e5 {[%emt 0:00:30]} 14. Bxe4 {[%emt 0:00:30]} dxe4 {[%emt 0:00:30]} 15. dxe5 {[%emt 0:00:30]} (15. Qxe4 $2 {loses.} exd4 16. Nec2 d3 (16... Nxc5 17. Qxd4 O-O 18. Bb2 $17) 17. exd3 Nxc5 $19) 15... Nxc5 {[%emt 0:00:30]} 16. Ng2 {[%emt 0:00:30]} Qd4 {[%emt 0:00:30] Dodges Ne3} 17. Be3 {[%emt 0:00:30]} Qxe5 {[%emt 0:00:30]} 18. Nc4 {[%emt 0:00:30]} Qe6 {[%emt 0:00:30]} 19. Rac1 {[%emt 0:00:30]} O-O {[%emt 0:00:30]} 20. Nd2 {[%emt 0:00:30] A dynamic duo of knights.} Nd7 {[%emt 0:00:30]} 21. Nxe4 {[%emt 0:00:30][%cal Of1d1]} Rfe8 {[%emt 0:00:30]} 22. Rfd1 {[%emt 0:00:30][%cal Og2f4]} Nf6 {[%emt 0:00:30]} 23. Nxf6+ {[%emt 0:00:30]} Bxf6 {[%emt 0:00:30]} 24. Nf4 {[%emt 0:00:30]} Qe7 {[%emt 0:00:30]} 25. Bc5 {[%emt 0:00:30]} Qc7 {[%emt 0:00:30]} 26. e3 {[%emt 0:00:30]} h6 {[%emt 0:00:30]} 27. Nh5 {[%emt 0:00:30] aiming for Nxf6+.} Qe5 {[%emt 0:00:30]} 28. Nf4 {[%emt 0:00:30][%cal Oc5d4]} Qc7 {[%emt 0:00:30]} 29. Nh5 {[%emt 0:00:30]} (29. Bd6 $11 Qa5 30. Bc5) 29... Qe5 $1 $16 {[%emt 0:00:30]} 30. Nf4 {[%emt 0:00:30] Weighted Error Value: White=0.08 (flawless) /Black=0.08 (flawless) .  Mistake:       	White=2     	---        Inaccurate:     	White=2     	Black=4      OK:         	White=11    	Black=9      Best:        	White=1     	Black=1      Strong:       	---       	Black=1} (30. g4 $16) 1/2-1/2

[Event "7th Sharjah Masters 2024"]
[Site "Sharjah"]
[Date "2024.05.18"]
[Round "5.9"]
[White "Yu, Yangyi"]
[Black "Zemlyanskii, Ivan"]
[Result "1-0"]
[ECO "B51"]
[WhiteElo "2729"]
[BlackElo "2516"]
[Annotator "TA"]
[PlyCount "103"]
[EventDate "2024.05.13"]
[EventType "swiss"]
[EventCountry "UAE"]
[SourceTitle "playchess.com"]
[Source "ChessBase"]
[SourceQuality "1"]
[TimeControl "5400+30"]

{[%evp 38,103,33,16,36,22,43,43,39,40,33,35,41,24,39,31,32,0,0,0,0,0,33,31,50,49,42,0,50,51,140,144,187,189,172,222,199,181,252,212,326,268,284,252,283,157,210,217,202,203,294,268,278,295,286,283,921,468,828,811,904,547,575,575,29987,29988,29988,29988]} 1. e4 {[%emt 1:31:00]} c5 {[%emt 1:31:00]} 2. Nf3 {[%emt 0:00:30]} d6 {[%emt 0:00:30]} 3. Bb5+ {[%emt 0:00:30]} Nd7 {[%emt 0:00:30]} 4. O-O {[%emt 0:00:30]} a6 {[%emt 0:00:30]} 5. Be2 {[%emt 0:00:30]} Ngf6 {[%emt 0:00:30]} 6. d3 {[%emt 0:00:30] B51: Sicilian: Moscow Variation (3 Bb5+) without 3...Bd7.} e6 {[%emt 0:00:30]} 7. a4 {[%emt 0:00:30]} b6 {[%emt 0:00:30]} 8. Nfd2 $5 {[%emt 0:00:30][%mdl 4] is the new trend. Leaves trodden paths.} d5 $146 {[%emt 0:00:30]} ({Predecessor:} 8... Be7 9. f4 O-O 10. Bf3 Bb7 11. Nc3 d5 12. g4 Nb8 13. g5 Ne8 14. exd5 exd5 {½-½ Nepomniachtchi,I (2771)-Carlsen,M (2839) AI Cup Div 1 W rapid 2023 (2.2)}) 9. f4 {[%emt 0:00:30]} Bb7 {[%emt 0:00:30]} 10. Bf3 {[%emt 0:00:30]} Qc7 {[%emt 0:00:30]} 11. e5 {[%emt 0:00:30]} Ng8 {[%emt 0:00:30]} 12. c4 {[%emt 0:00:30]} Ne7 {[%emt 0:00:30]} 13. Nc3 {[%emt 0:00:30]} g6 {[%emt 0:00:30]} 14. a5 {[%emt 0:00:30]} Bh6 {[%emt 0:00:30]} 15. Nb3 {[%emt 0:00:30]} O-O {[%emt 0:00:30]} 16. axb6 {[%emt 0:00:30]} Nxb6 {[%emt 0:00:30]} 17. Na5 {[%emt 0:00:30]} Rad8 {[%emt 0:00:30]} 18. Nxb7 {[%emt 0:00:30]} Qxb7 {[%emt 0:00:30]} 19. Qb3 {[%emt 0:00:30]} Rb8 {[%emt 0:00:30]} 20. Qa2 {[%emt 0:00:30]} Rfd8 {[%emt 0:00:30]} 21. g3 {[%emt 0:00:30]} Qc7 {[%emt 0:00:30]} 22. Bg2 {[%emt 0:00:30]} (22. Qxa6 $2 Ra8 $19) 22... Nc6 {[%emt 0:00:30]} 23. b3 {[%emt 0:00:30]} (23. Qxa6 $2 Ra8 $19) 23... Bg7 {[%emt 0:00:30]} 24. Ba3 {[%emt 0:00:30]} Nd4 {[%emt 0:00:30]} 25. Rac1 {[%emt 0:00:30]} dxc4 {[%emt 0:00:30]} 26. bxc4 {[%emt 0:00:30]} Nd7 {[%emt 0:00:30]} 27. Bb2 {[%emt 0:00:30]} f6 $1 {[%emt 0:00:30]} 28. exf6 {[%emt 0:00:30]} Nxf6 {[%emt 0:00:30]} 29. Rce1 {[%emt 0:00:30]} Qd7 {[%emt 0:00:30]} 30. Nd1 {[%emt 0:00:30]} Rb6 {[%emt 0:00:30]} 31. Bc3 {[%emt 0:00:30]} Rdb8 {[%emt 0:00:30]} 32. Kh1 {[%emt 0:00:30]} h5 {[%emt 0:00:30]} (32... Ng4 $11) 33. Nf2 $14 {[%emt 0:00:30]} h4 {[%emt 0:00:30]} (33... Ng4 $14) 34. gxh4 $16 {[%emt 0:00:30]} Nf5 {[%emt 0:00:30]} 35. Be5 {[%emt 0:00:30]} Rc8 {[%emt 0:00:30]} 36. Rb1 {[%emt 0:00:30]} Rb4 {[%emt 0:00:30]} 37. Qxa6 {[%emt 0:00:30]} Nh5 {[%emt 0:00:30]} (37... Nxh4 $142 38. Bb7 Rd8 39. Rxb4 cxb4) 38. Ne4 {[%emt 0:00:30]} Rxb1 {[%emt 0:00:30]} (38... Bxe5 $142 39. fxe5 Re8 40. Rxb4 (40. Nxc5 Qd4 $18) 40... cxb4) 39. Rxb1 $18 Bxe5 {[%emt 0:00:30]} 40. fxe5 Rf8 {[%emt 0:00:30]} 41. Rf1 {[%emt 0:01:30]} ({White should try} 41. Nxc5 $18 Qd4 42. Qxe6+ (42. Nxe6 Nhg3+ 43. hxg3 Nxg3+ 44. Kh2 Qxh4+ 45. Bh3 Rf2+ 46. Kg1 Ne2+ 47. Kh1 Qxh3#) 42... Kh8 43. Qxg6 Qxh4 44. Ne4) 41... Qxd3 {[%emt 0:00:30]} (41... Kh8 $16 {was called for.}) 42. Qxe6+ $18 (42. Nxc5 Nfg3+ 43. hxg3 Rxf1+ 44. Bxf1 Qxf1+ 45. Kh2 Qf2+ 46. Kh3 Qxg3#) 42... Kg7 {[%emt 0:00:30]} 43. Qd5 {[%emt 0:01:00]} (43. Nxc5 {gets mated.} Nfg3+ 44. hxg3 Rxf1+ 45. Bxf1 Qxf1+ 46. Kh2 Qf2+ 47. Kh3 Qxg3#) 43... Qe2 {[%emt 0:00:30]} (43... Qd4 {was necessary.} 44. Qxd4 (44. Nxc5 {leads to mate.} Nhg3+ 45. hxg3 Nxg3+ 46. Kh2 Qxh4+ 47. Bh3 Nxf1+ 48. Kg1 Qf2+ 49. Kh1 Qh2#) (44. Qxc5 Nhg3+ 45. hxg3 Nxg3+ 46. Kh2 Nxf1+ 47. Kh1 Qxc5 $15) 44... cxd4) 44. Qxc5 $18 {[%emt 0:00:30]} Re8 {[%emt 0:00:30]} 45. Nd6 {[%emt 0:00:30]} Rxe5 {[%emt 0:00:30]} 46. Qa7+ {[%emt 0:00:30]} Ne7 $2 {[%emt 0:00:30]} (46... Re7 47. Nxf5+ gxf5) 47. Qd4 {[%emt 0:00:30]} Qe3 {[%emt 0:00:30]} (47... Nf6 $142 48. Ne4 Qxf1+ 49. Bxf1 Rxe4) 48. Qa1 $18 {[%emt 0:00:30]} Nf6 {[%emt 0:00:30]} 49. c5 {[%emt 0:00:30]} Qxc5 {[%emt 0:00:30] [#]} 50. Rxf6 $1 {[%emt 0:00:30]} Qe3 {[%emt 0:00:30]} 51. Rf7+ {[%emt 0:00:30]} Kh6 {[%emt 0:00:30]} 52. Rf1 {[%emt 0:00:30]} 1-0

[Event "7th Sharjah Masters 2024"]
[Site "Sharjah"]
[Date "2024.05.18"]
[Round "5.10"]
[White "Royal, Shreyas"]
[Black "Nihal Sarin"]
[Result "1/2-1/2"]
[ECO "A77"]
[WhiteElo "2464"]
[BlackElo "2680"]
[Annotator "RC"]
[PlyCount "98"]
[EventDate "2024.05.13"]
[EventType "swiss"]
[EventCountry "UAE"]
[SourceTitle "playchess.com"]
[Source "ChessBase"]
[SourceQuality "1"]
[TimeControl "5400+30"]

1. d4 {[%emt 0:00:02]} Nf6 {[%emt 0:02:47]} 2. c4 {[%emt 0:00:09]} c5 {[%emt 0:00:08]} 3. d5 {[%emt 0:00:06]} e6 {[%emt 0:00:05]} 4. Nc3 {[%emt 0:00:22]} exd5 {[%emt 0:00:07]} 5. cxd5 {[%emt 0:00:05]} d6 {[%emt 0:00:06]} 6. Nf3 {[%emt 0:00:20]} g6 {[%emt 0:00:06]} 7. Nd2 {[%emt 0:00:16]} Bg7 {[%emt 0:00:17]} 8. e4 {[%emt 0:00:07]} O-O {[%emt 0:00:43]} 9. Be2 {[%emt 0:00:14]} Re8 {[%emt 0:00:21]} 10. O-O {[%emt 0:00:11]} a6 {[%emt 0:00:03]} 11. a4 {[%emt 0:00:26]} Nbd7 {[%emt 0:00:05]} 12. h3 {[%emt 0:03:25]} Rb8 {[%emt 0:02:27]} 13. Qc2 {[%emt 0:01:57]} Ne5 {[%emt 0:02:51]} 14. f4 {[%emt 0:06:11]} Ned7 {[%emt 0:01:43]} 15. a5 {[%emt 0:01:13]} b5 {[%emt 0:04:03]} 16. axb6 {[%emt 0:00:30]} Nxb6 {[%emt 0:00:08]} 17. Nb3 {[%emt 0:08:09]} Nxe4 {[%emt 0:28:21]} 18. Nxe4 {[%emt 0:00:07]} Nxd5 {[%emt 0:00:05]} 19. Bf3 {[%emt 0:05:17]} Bf5 {[%emt 0:14:30]} 20. Qd2 {[%emt 0:04:06]} Rxb3 {[%emt 0:09:34]} 21. Qxd5 {[%emt 0:00:17]} Rxf3 {[%emt 0:00:07]} 22. Nf6+ {[%emt 0:14:57]} Bxf6 {[%emt 0:01:26]} 23. Qxf3 {[%emt 0:00:06]} Qb6 {[%emt 0:00:35]} 24. Kh2 {[%emt 0:06:15]} c4 {[%emt 0:02:48]} 25. Qg3 {[%emt 0:04:54]} d5 {[%emt 0:11:15]} 26. Re1 {[%emt 0:00:20]} Rxe1 {[%emt 0:01:48]} 27. Qxe1 {[%emt 0:00:01]} Be4 {[%emt 0:00:18]} 28. Qe2 {[%emt 0:02:53]} h5 {[%emt 0:01:51]} 29. Ra2 {[%emt 0:03:24]} Kg7 {[%emt 0:08:20]} 30. Be3 {[%emt 0:04:06]} Qd6 {[%emt 0:00:06]} 31. Bd2 {[%emt 0:04:14]} Qc6 {[%emt 0:01:45]} 32. g4 {[%emt 0:02:30]} hxg4 {[%emt 0:00:22]} 33. hxg4 {[%emt 0:00:02]} Kg8 {[%emt 0:01:48]} 34. Qf2 {[%emt 0:03:06]} Qe6 {[%emt 0:01:12]} 35. g5 {[%emt 0:02:43]} Bg7 {[%emt 0:01:37]} 36. Bc3 {[%emt 0:00:13]} Bd3 {[%emt 0:01:44]} 37. Ra1 {[%emt 0:02:49]} Qg4 {[%emt 0:02:31]} 38. Bxg7 {[%emt 0:03:53]} Kxg7 {[%emt 0:00:02]} 39. Rxa6 {[%emt 0:00:06]} Bf5 {[%emt 0:00:59]} 40. Ra3 {[%emt 0:04:17]} Qh5+ {[%emt 0:00:19]} 41. Kg2 {[%emt 0:00:19]} Qd1 {[%emt 0:00:33]} 42. Re3 {[%emt 0:01:29]} Qg4+ {[%emt 0:00:59]} 43. Kh2 {[%emt 0:02:12]} d4 {[%emt 0:00:23]} 44. Re8 {[%emt 0:01:01]} Qh5+ {[%emt 0:00:09]} 45. Kg1 {[%emt 0:00:51]} Qd1+ {[%emt 0:00:07]} 46. Kh2 {[%emt 0:01:15]} c3 {[%emt 0:00:44]} 47. bxc3 {[%emt 0:00:11]} dxc3 {[%emt 0:00:02]} 48. Qe3 {[%emt 0:01:28]} Qc2+ {[%emt 0:00:57]} 49. Kg3 {[%emt 0:00:26]} Qd3 {[%emt 0:00:14]} 1/2-1/2

[Event "7th Sharjah Masters 2024"]
[Site "Sharjah"]
[Date "2024.05.18"]
[Round "5.11"]
[White "Nguyen, Thai Dai Van"]
[Black "Maurizzi, Marc`Andria"]
[Result "1/2-1/2"]
[ECO "E08"]
[WhiteElo "2650"]
[BlackElo "2618"]
[Annotator "TA"]
[PlyCount "82"]
[EventDate "2024.05.13"]
[EventType "swiss"]
[EventCountry "UAE"]
[SourceTitle "playchess.com"]
[Source "ChessBase"]
[SourceQuality "1"]
[TimeControl "5400+30"]

{[%evp 17,82,12,24,19,14,-12,18,27,29,11,11,20,13,24,17,0,0,0,-10,-35,-18,-39,0,0,0,0,0,0,0,0,0,0,0,0,0,-22,0,0,0,0,0,0,0,0,0,0,0,0,0,0,0,-6,0,0,0,0,0,0,0,0,0,0,0,0,0,0,0]} 1. d4 {[%emt 0:00:01]} d5 {[%emt 0:00:04]} 2. c4 {[%emt 0:00:06]} e6 {[%emt 0:00:02]} 3. Nf3 {[%emt 0:00:30]} Nf6 {[%emt 0:00:04]} 4. g3 {[%emt 0:00:09]} Bb4+ {[%emt 0:02:01]} 5. Bd2 {[%emt 0:00:16]} Be7 {[%emt 0:01:45]} 6. Bg2 {[%emt 0:00:06]} Nbd7 {[%emt 0:00:21]} 7. O-O {[%emt 0:06:17]} O-O {[%emt 0:00:37]} 8. Qc2 {[%emt 0:00:23]} c6 {[%emt 0:00:06]} 9. Bf4 {[%emt 0:00:07]} Ne4 {[%emt 0:04:58]} 10. Rd1 {[%emt 0:00:14]} f5 {[%emt 0:08:15]} 11. b3 {[%emt 0:00:34]} a5 {[%emt 0:05:54]} 12. Nc3 {[%emt 0:04:02]} Bf6 {[%emt 0:05:15]} 13. Rac1 {[%emt 0:16:53]} g5 {[%emt 0:11:59]} 14. Be3 {[%emt 0:14:41]} Qe7 {[%emt 0:05:38]} 15. Ne1 {[%emt 0:03:46]} (15. h3 {keeps more tension.} h6 16. g4 Nd6 17. gxf5 Nxf5 18. cxd5 Nxe3 19. d6) 15... Nd6 {[%emt 0:14:45]} 16. c5 {[%emt 0:16:45]} Ne4 {[%emt 0:04:43][%cal Rd7c5]} 17. Nxe4 {[%emt 0:19:23]} fxe4 {[%emt 0:01:42]} 18. Qd2 {[%emt 0:00:04]} e5 {[%emt 0:01:36]} 19. f3 {[%emt 0:06:14]} exd4 {[%emt 0:14:05]} 20. Bxd4 {[%emt 0:00:02] The position is equal.} Bxd4+ {[%emt 0:00:34]} 21. Qxd4 {[%emt 0:00:01]} Nf6 {[%emt 0:00:06]} 22. fxe4 {[%emt 0:01:30]} Nxe4 {[%emt 0:00:37]} 23. Bxe4 {[%emt 0:00:48]} Qxe4 {[%emt 0:00:07]} 24. Qxe4 {[%emt 0:00:41]} dxe4 {[%emt 0:00:01]} 25. Nc2 {[%emt 0:02:47]} a4 {[%emt 0:03:27]} 26. b4 {[%emt 0:00:01]} a3 {[%emt 0:01:37]} 27. Ne3 {[%emt 0:04:55]} Be6 {[%emt 0:02:08]} 28. Rc2 {[%emt 0:03:14]} Rfd8 {[%emt 0:05:06]} 29. Rxd8+ {[%emt 0:00:00]} Rxd8 $11 {[%emt 0:00:37][%mdl 4096] Endgame. KRB-KRN} 30. Kf2 {[%emt 0:00:00]} Rd4 {[%emt 0:00:51]} 31. Rc3 {[%emt 0:00:00]} Rxb4 {[%emt 0:00:06]} 32. Rxa3 {[%emt 0:00:00]} Kf7 {[%emt 0:02:01]} 33. Ra7 {[%emt 0:00:00]} Kf6 {[%emt 0:01:26]} 34. a4 {[%emt 0:00:09]} Ke5 {[%emt 0:03:07]} 35. a5 {[%emt 0:00:09]} Rb5 {[%emt 0:00:05]} 36. a6 {[%emt 0:00:02]} bxa6 {[%emt 0:00:04]} (36... Rxc5 $2 {is the wrong capture.} 37. axb7 (37. Rxb7 Ra5 $16) 37... Rb5 38. Ra5 Rxa5 39. b8=Q+ $18 (39. b8=B+ $2 Kd4 $19)) 37. Rxa6 {[%emt 0:00:04]} Rxc5 {[%emt 0:00:03]} 38. Ra7 {[%emt 0:00:05]} h5 {[%emt 0:00:26]} 39. Rh7 {[%emt 0:00:06]} h4 {[%emt 0:01:23]} 40. gxh4 {[%emt 0:00:09]} gxh4 {[%emt 0:00:04]} 41. Rxh4 {[%emt 0:00:18]} Rc1 {[%emt 0:00:18] An interesting draw.   Weighted Error Value: White=0.05 (flawless) /Black=0.05 (flawless) .  Inaccurate:     	White=1     	Black=2      OK:         	White=12    	Black=11     Best:        	White=2     	Black=1} 1/2-1/2